Workbook

Sheet Retirement Calculator
A1: Annuities: To buy or not to buy? | H1: Year | I1: Expenses | J1: Pension | K1: Shortfall | L1: Year end corpus | M1: 5487841.282 | O1: Year | P1: Expenses | Q1: Pension | R1: Shortfall | S1: Year end corpus | T1: 24117094.45 | W1: Year | X1: Expenses | Y1: Pension | Z1: Shortfall | AA1: Year end corpus | AB1: 5407897.048
A2: Fill only green cells | H2: 1 | I2: =B4 -> 500000 | J2: =B8 -> 300000 | K2: =I2-J2 -> 200000 | L2: =(M1-K2)*(1+$B$5) -> 5605111.758 | O2: =H16+1 -> 16 | P2: =I16*(1+$C$6) -> 1586084.557 | Q2: =J16*(1+$B$9) -> 300000 | R2: =P2-Q2 -> 1286084.557 | S2: =(T1-R2)*(1+$C$5) -> 24200870.49 | W2: 1 | X2: =B4 -> 500000 | Y2: =B8 -> 300000 | Z2: =X2-Y2 -> 200000 | AA2: =(AB1-Z2)*(1+$B$5) -> 5520370.87
B3: First segment | C3: Second segment | H3: =H2+1 -> 2 | I3: =I2*(1+$B$6) -> 540000 | J3: =J2*(1+$B$9) -> 300000 | K3: =I3-J3 -> 240000 | L3: =IF(L2<0,"Shortfall",(L2-K3)*(1+$B$5)) -> 5687018.464 | O3: =O2+1 -> 17 | P3: =P2*(1+$C$6) -> 1712971.322 | Q3: =Q2*(1+$B$9) -> 300000 | R3: =P3-Q3 -> 1412971.322 | S3: =IF(S2<0,"Shortfall",(S2-R3)*(1+$C$5)) -> 24155173.12 | W3: =W2+1 -> 2 | X3: =X2*(1+$B$6) -> 540000 | Y3: =Y2*(1+$B$9) -> 300000 | Z3: =X3-Y3 -> 240000 | AA3: =IF(AA2<0,"Shortfall",(AA2-Z3)*(1+$B$5)) -> 5597193.123
A4: Amount needed in first year (expenses) | B4: 500000 | C4: =B4*(1+B6)^B7 -> 1586084.557 | H4: 3 | I4: 583200 | J4: =J3*(1+$B$9) -> 300000 | K4: 283200 | L4: =IF(L3<0,"Shortfall",(L3-K4)*(1+$B$5)) -> 5728047.572 | O4: 18 | P4: =P3*(1+$C$6) -> 1850009.027 | Q4: =Q3*(1+$B$9) -> 300000 | R4: 1550009.027 | S4: =IF(S3<0,"Shortfall",(S3-R4)*(1+$C$5)) -> 23961473.94 | W4: 3 | X4: 583200 | Y4: =Y3*(1+$B$9) -> 300000 | Z4: 283200 | AA4: =IF(AA3<0,"Shortfall",(AA3-Z4)*(1+$B$5)) -> 5632832.71
A5: volatility free Interest rate on corpus (post-tax) | B5: 0.06 | C5: =B5 -> 0.06 | H5: 4 | I5: 629856 | J5: 300000 | K5: 329856 | L5: 5722083.066 | O5: 19 | P5: 1998009.75 | Q5: 300000 | R5: 1698009.75 | S5: 23599272.04 | W5: 4 | X5: 629856 | Y5: 300000 | Z5: 329856 | AA5: 5621155.313
A6: Inflation rate (or rate at which income should increase) | B6: 0.08 | C6: =B6 -> 0.08 | H6: 5 | I6: 680244.48 | J6: 300000 | K6: 380244.48 | L6: 5662348.901 | O6: 20 | P6: 2157850.53 | Q6: 300000 | R6: 1857850.53 | S6: 23045906.8 | W6: 5 | X6: 680244.48 | Y6: 300000 | Z6: 380244.48 | AA6: 5555365.483
A7: Years payments are required (fixed) | B7: 15 | C7: =B7 -> 15 | H7: 6 | I7: 734664.0384 | J7: 300000 | K7: 434664.0384 | L7: 5541345.955 | O7: 21 | P7: 2330478.572 | Q7: 300000 | R7: 2030478.572 | S7: 22276353.92 | W7: 6 | X7: 734664.0384 | Y7: 300000 | Z7: 434664.0384 | AA7: 5427943.531
A8: Intial pension or annuity received (annual) | B8: 300000 | H8: 7 | I8: 793437.1615 | J8: 300000 | K8: 493437.1615 | L8: 5350783.321 | O8: 22 | P8: 2516916.858 | Q8: 300000 | R8: 2216916.858 | S8: 21263003.29 | W8: 7 | X8: 793437.1615 | Y8: 300000 | Z8: 493437.1615 | AA8: 5230576.752
A9: Average increase in pension per year | H9: 8 | I9: 856912.1344 | J9: 300000 | K9: 556912.1344 | L9: 5081503.458 | O9: 23 | P9: 2718270.206 | Q9: 300000 | R9: 2418270.206 | S9: 19975417.06 | W9: 8 | X9: 856912.1344 | Y9: 300000 | Z9: 556912.1344 | AA9: 4954084.494
H10: 9 | I10: 925465.1051 | J10: 300000 | K10: =I10-J10 -> 625465.1051 | L10: =IF(L9<0,"Shortfall",(L9-K10)*(1+$B$5)) -> 4723400.654 | O10: 24 | P10: 2935731.823 | Q10: 300000 | R10: =P10-Q10 -> 2635731.823 | S10: 18380066.36 | W10: 9 | X10: 925465.1051 | Y10: 300000 | Z10: =X10-Y10 -> 625465.1051 | AA10: =IF(AA9<0,"Shortfall",(AA9-Z10)*(1+$B$5)) -> 4588336.552
H11: 10 | I11: 999502.3136 | J11: 300000 | K11: =I11-J11 -> 699502.3136 | L11: 4265332.24 | O11: 25 | P11: 3170590.369 | Q11: 300000 | R11: =P11-Q11 -> 2870590.369 | S11: 16440044.55 | W11: 10 | X11: 999502.3136 | Y11: 300000 | Z11: =X11-Y11 -> 699502.3136 | AA11: 4122164.293
B12: =CONCATENATE("First ",B7," years in retirement") -> First 15 years in retirement | C12: =CONCATENATE("Next ",C7," years in retirement") -> Next 15 years in retirement | H12: 11 | I12: 1079462.499 | J12: 300000 | K12: =I12-J12 -> 779462.4986 | L12: 3695021.926 | O12: 26 | P12: 3424237.598 | Q12: 300000 | R12: =P12-Q12 -> 3124237.598 | S12: 14114755.36 | W12: 11 | X12: 1079462.499 | Y12: 300000 | Z12: =X12-Y12 -> 779462.4986 | AA12: 3543263.902
A13: Corpus for first segment | B13: =M1 -> 5487841.282 | C13: =T1 -> 24117094.45 | H13: 12 | I13: 1165819.499 | J13: 300000 | K13: =I13-J13 -> 865819.4985 | L13: 2998954.573 | O13: 27 | P13: 3698176.606 | Q13: 300000 | R13: =P13-Q13 -> 3398176.606 | S13: 11359573.48 | W13: 12 | X13: 1165819.499 | Y13: 300000 | Z13: =X13-Y13 -> 865819.4985 | AA13: 2838091.068
A14: Amount initially required to generate corpus for second segment* | C14: =C13/(1+10%)^B7 -> 5773440.666 | H14: 13 | I14: 1259085.058 | J14: 300000 | K14: =I14-J14 -> 959085.0584 | L14: 2162261.686 | O14: 28 | P14: 3994030.734 | Q14: 300000 | R14: =P14-Q14 -> 3694030.734 | S14: 8125475.315 | W14: 13 | X14: 1259085.058 | Y14: 300000 | Z14: =X14-Y14 -> 959085.0584 | AA14: 1991746.37
A15: * 10% portfolio growth rate is used. Change it in cells C14 | H15: 14 | I15: 1359811.863 | J15: 300000 | K15: 1059811.863 | L15: 1168596.812 | O15: 29 | P15: 4313553.193 | Q15: 300000 | R15: =P15-Q15 -> 4013553.193 | S15: 4358637.449 | W15: 14 | X15: 1359811.863 | Y15: 300000 | Z15: =X15-Y15 -> 1059811.863 | AA15: 987850.5774
H16: 15 | I16: 1468596.812 | J16: 300000 | K16: 1168596.812 | L16: -4.31900844e-08 | O16: 30 | P16: 4658637.449 | Q16: 300000 | R16: 4358637.449 | S16: -6.910413504e-09 | W16: 15 | X16: 1468596.812 | Y16: 300000 | Z16: 1168596.812 | AA16: =IF(AA15<0,"Shortfall",(AA15-Z16)*(1+$B$5)) -> -191591.0088
A17: Total corpus required for indexed pension (in addition to regular pension or annuity, if any) | C17: =B13+C14 -> 11261281.95 | F17: =(C13/F19)^(1/15)-1 -> 0.137060021 | W17: =W16+1 -> 16 | X17: =X16*(1+$B$6) -> 1586084.557 | Y17: =Y16*(1+$B$9) -> 300000 | Z17: =X17-Y17 -> 1286084.557 | AA17: =IF(AA16<0,"Shortfall",(AA16-Z17)*(1+$B$5)) -> Shortfall
A18: Initial withdrawal rate (required) | C18: =B4/C17 -> 0.04439991844 | I18: =60%*C14/(C17) -> 0.3076083536 | W18: 17 | X18: 1712971.322 | Y18: 300000 | Z18: 1412971.322
A19: What is the corpus that you actually have? | C19: 9000000 | F19: =(C19-B13) -> 3512158.718 | W19: 18 | X19: 1850009.027 | Y19: 300000 | Z19: 1550009.027
A20: Initial withdrawal rate (actual) | C20: =B4/C19 -> 0.05555555556 | W20: 19 | X20: 1998009.75 | Y20: 300000 | Z20: 1698009.75
A21: Results | W21: 20 | X21: 2157850.53 | Y21: 300000 | Z21: 1857850.53
A22: =IF(C19<=B13,"You will not be able to generate an indexed pension, in addition to regular pension (if any), please consider buying an annuity with your corpus","") ->  | W22: 21 | X22: 2330478.572 | Y22: 300000 | Z22: 2030478.572
A23: =IF(A22<>"","",IF(F19<C14,"To generate the necessary corpus for the next 15 years in retirement, you need a net portfolio return of","")) -> To generate the necessary corpus for the next 15 years in retirement, you need a net portfolio return of | D23: =IF(A22<>"","",IF(F19<C14,F17,"")) -> 0.137060021 | W23: 22 | X23: 2516916.858 | Y23: 300000 | Z23: 2216916.858
A24: =IF(A22<>"","",IF(F19<C14,"If this return is anything above 12% (preferably 10%), you will need to take excessive risk. Please consider buying an annuity with your corpus","")) -> If this return is anything above 12% (preferably 10%), you will need to take excessive risk. Please consider buying an annuity with your corpus | W24: 23 | X24: 2718270.206 | Y24: 300000 | Z24: 2418270.206
A25: =IF(C19>=C17,"Great! You have enough corpus to generate an inflation protected income!","") ->  | W25: 24 | X25: 2935731.823 | Y25: 300000 | Z25: 2635731.823
W26: 25 | X26: 3170590.369 | Y26: 300000 | Z26: 2870590.369
W27: 26 | X27: 3424237.598 | Y27: 300000 | Z27: 3124237.598
W28: 27 | X28: 3698176.606 | Y28: 300000 | Z28: 3398176.606
W29: =W28+1 -> 28 | X29: =X28*(1+$B$6) -> 3994030.734 | Y29: =Y28*(1+$B$9) -> 300000 | Z29: =X29-Y29 -> 3694030.734 | AA29: =IF(AA28<0,"Shortfall",(AA28-Z29)*(1+$B$5)) -> 
W30: 29 | X30: 4313553.193 | Y30: 300000 | Z30: 4013553.193
W31: 30 | X31: 4658637.449 | Y31: 300000 | Z31: 4358637.449

Sheet Sheet2
